[Event "FIDE U16 Olympiad_boards_81-124"]
[Site "Eindhoven, Netherlands"]
[Date "2023.08.14"]
[Round "3.20"]
[White "Leenen, Boyd"]
[Black "Tsai, Sophie Yi-Hsuan"]
[Result "1-0"]
[TimeControl "45min+10sec"]
[WhiteElo "2008"]
[BlackElo "1155"]

1. d4 {[%clk 00:45:19]} Nf6 {[%clk 00:45:18]} {[%emt 00:00:03]} 2. c4 {[%clk
00:45:28]} {[%emt 00:00:01]} e6 {[%clk 00:45:26]} {[%emt 00:00:02]} 3. Nf3
{[%clk 00:45:37]} {[%emt 00:00:01]} b6 {[%clk 00:45:19]} {[%emt 00:00:16]} 4.
Nc3 {[%clk 00:45:44]} {[%emt 00:00:03]} Bb4 {[%clk 00:45:27]} {[%emt 00:00:02]}
5. e3 {[%clk 00:45:38]} {[%emt 00:00:16]} O-O {[%clk 00:45:25]} {[%emt
00:00:12]} 6. Be2 {[%clk 00:45:43]} {[%emt 00:00:05]} Bxc3+ {[%clk 00:45:25]}
{[%emt 00:00:11]} 7. bxc3 {[%clk 00:45:51]} {[%emt 00:00:02]} c5 {[%clk
00:45:33]} 8. O-O {[%clk 00:45:55]} {[%emt 00:00:06]} d6 {[%clk 00:43:46]}
{[%emt 00:01:58]} 9. Bb2 {[%clk 00:46:02]} {[%emt 00:00:03]} Bb7 {[%clk
00:43:37]} {[%emt 00:00:18]} 10. Re1 {[%clk 00:45:26]} {[%emt 00:00:46]} Nbd7
{[%clk 00:42:05]} {[%emt 00:01:42]} 11. Rc1 {[%clk 00:44:14]} {[%emt 00:01:21]}
Re8 {[%clk 00:41:33]} {[%emt 00:00:43]} 12. Bd3 {[%clk 00:42:49]} {[%emt
00:01:34]} e5 {[%clk 00:40:06]} {[%emt 00:01:38]} 13. Bb1 {[%clk 00:42:14]}
{[%emt 00:00:45]} Ba6 {[%clk 00:39:27]} {[%emt 00:00:49]} 14. Qa4 {[%clk
00:41:52]} {[%emt 00:00:30]} Bb7 {[%clk 00:37:24]} {[%emt 00:02:16]} 15. Nd2
{[%clk 00:41:38]} {[%emt 00:00:23]} Ng4 {[%clk 00:20:43]} {[%emt 00:16:52]} 16.
h3 {[%clk 00:41:32]} {[%emt 00:00:15]} Nh6 {[%clk 00:19:35]} {[%emt 00:01:18]}
17. Ne4 {[%clk 00:40:23]} {[%emt 00:01:19]} Nf6 {[%clk 00:19:17]} {[%emt
00:00:29]} 18. Ng3 {[%clk 00:39:39]} {[%emt 00:00:53]} Qc7 {[%clk 00:16:33]}
{[%emt 00:02:55]} 19. Qc2 {[%clk 00:38:01]} {[%emt 00:01:45]} e4 {[%clk
00:14:04]} {[%emt 00:02:41]} 20. Red1 {[%clk 00:37:06]} {[%emt 00:01:03]} a5
{[%clk 00:13:30]} {[%emt 00:00:46]} 21. Ba1 {[%clk 00:33:55]} {[%emt 00:03:21]}
a4 {[%clk 00:13:20]} {[%emt 00:00:20]} 22. a3 {[%clk 00:33:35]} {[%emt
00:00:29]} Ra5 {[%clk 00:07:07]} {[%emt 00:06:24]} 23. Ba2 {[%clk 00:32:43]}
{[%emt 00:01:03]} Ba6 {[%clk 00:06:24]} {[%emt 00:00:53]} 24. Rb1 {[%clk
00:32:26]} {[%emt 00:00:27]} d5 {[%clk 00:06:21]} {[%emt 00:00:13]} 25. Qb2
{[%clk 00:29:53]} {[%emt 00:02:42]} Bxc4 {[%clk 00:04:09]} {[%emt 00:02:22]} 26.
Bxc4 {[%clk 00:29:57]} {[%emt 00:00:06]} dxc4 {[%clk 00:04:17]} {[%emt
00:00:02]} 27. Qxb6 {[%clk 00:30:05]} {[%emt 00:00:03]} Qxb6 {[%clk 00:04:06]}
{[%emt 00:00:21]} 28. Rxb6 {[%clk 00:30:13]} {[%emt 00:00:02]} cxd4 {[%clk
00:01:53]} {[%emt 00:02:23]} 29. cxd4 {[%clk 00:30:21]} {[%emt 00:00:02]} Nd5
{[%clk 00:01:47]} {[%emt 00:00:16]} 30. Rb7 {[%clk 00:30:17]} {[%emt 00:00:13]}
f5 {[%clk 00:01:30]} {[%emt 00:00:28]} 31. Rc1 {[%clk 00:30:03]} {[%emt
00:00:22]} Rc8 {[%clk 00:01:28]} {[%emt 00:00:13]} 32. Bc3 {[%clk 00:29:22]}
{[%emt 00:00:50]} Raa8 {[%clk 00:01:16]} {[%emt 00:00:23]} 33. Rb5 {[%clk
00:28:39]} {[%emt 00:00:52]} Nc7 {[%clk 00:00:44]} {[%emt 00:00:43]} 34. Rc5
{[%clk 00:27:44]} {[%emt 00:00:59]} g6 {[%clk 00:00:32]} {[%emt 00:00:28]} 35.
Rxc4 {[%clk 00:27:46]} {[%emt 00:00:09]} Nd5 {[%clk 00:00:20]} {[%emt
00:00:22]} 36. Be1 {[%clk 00:27:21]} {[%emt 00:00:34]} Nb6 {[%clk 00:00:22]}
{[%emt 00:00:09]} 37. Rc6 {[%clk 00:27:06]} {[%emt 00:00:20]} Rxc6 {[%clk
00:00:21]} {[%emt 00:00:16]} 38. Rxc6 {[%clk 00:27:15]} {[%emt 00:00:01]} Rb8
{[%clk 00:00:25]} {[%emt 00:00:06]} 39. Bb4 {[%clk 00:27:11]} {[%emt 00:00:13]}
Nf7 {[%clk 00:00:28]} {[%emt 00:00:07]} 40. Ne2 {[%clk 00:27:08]} {[%emt
00:00:13]} Nd5 {[%clk 00:00:35]} {[%emt 00:00:04]} 41. Rc4 {[%clk 00:26:11]}
{[%emt 00:01:05]} Nxb4 {[%clk 00:00:35]} {[%emt 00:00:12]} 42. Rxb4 {[%clk
00:26:19]} {[%emt 00:00:02]} Rxb4 {[%clk 00:00:35]} {[%emt 00:00:10]} 43. axb4
{[%clk 00:26:27]} {[%emt 00:00:02]} a3 {[%clk 00:00:38]} {[%emt 00:00:06]} 44.
Nc3 {[%clk 00:26:36]} {[%emt 00:00:02]} Nd6 {[%clk 00:00:47]} 45. Kf1 {[%clk
00:26:38]} {[%emt 00:00:08]} Nb5 {[%clk 00:00:45]} {[%emt 00:00:12]} 46. Na2
{[%clk 00:26:45]} {[%emt 00:00:02]} Kf7 {[%clk 00:00:52]} {[%emt 00:00:04]} 47.
Ke2 {[%clk 00:26:52]} {[%emt 00:00:03]} Ke6 {[%clk 00:00:50]} {[%emt 00:00:11]}
48. Kd2 {[%clk 00:26:41]} {[%emt 00:00:20]} Kd5 {[%clk 00:00:57]} {[%emt
00:00:04]} 49. Nc3+ {[%clk 00:26:19]} {[%emt 00:00:33]} Kc4 {[%clk 00:00:23]}
{[%emt 00:00:44]} 50. Na2 {[%clk 00:26:00]} {[%emt 00:00:29]} Na7 {[%clk
00:00:29]} {[%emt 00:00:04]} 51. Kc2 {[%clk 00:25:47]} {[%emt 00:00:23]} Nb5
{[%clk 00:00:15]} {[%emt 00:00:23]} 52. d5 {[%clk 00:23:15]} {[%emt 00:02:42]}
Nd6 {[%emt 00:00:18]} 1-0

[Event "FIDE U16 Olympiad_boards_81-124"]
[Site "Eindhoven, Netherlands"]
[Date "2023.08.14"]
[Round "3.21"]
[White "Wangthumboon, Patawee"]
[Black "Mwase, Arthur"]
[Result "1-0"]
[TimeControl "45min+10sec"]
[WhiteElo "1452"]
[BlackElo "1504"]

1. e4 {[%clk 00:45:16]} {[%emt 00:00:03]} c6 {[%clk 00:45:18]} {[%emt
00:00:02]} 2. d4 {[%clk 00:45:25]} {[%emt 00:00:02]} d5 {[%clk 00:45:26]}
{[%emt 00:00:01]} 3. exd5 {[%clk 00:45:33]} {[%emt 00:00:02]} cxd5 {[%clk
00:45:34]} {[%emt 00:00:02]} 4. Bd3 {[%clk 00:45:41]} {[%emt 00:00:02]} Nc6
{[%clk 00:45:38]} {[%emt 00:00:06]} 5. c3 {[%clk 00:45:49]} {[%emt 00:00:03]}
Nf6 {[%clk 00:45:19]} {[%emt 00:00:28]} 6. Bf4 {[%clk 00:45:48]} {[%emt
00:00:11]} g6 {[%clk 00:44:41]} {[%emt 00:00:48]} 7. Nf3 {[%clk 00:44:39]}
{[%emt 00:01:19]} Bg7 {[%clk 00:44:33]} {[%emt 00:00:17]} 8. O-O {[%clk
00:44:39]} {[%emt 00:00:10]} O-O {[%clk 00:44:39]} {[%emt 00:00:05]} 9. Re1
{[%clk 00:43:49]} {[%emt 00:01:00]} Re8 {[%clk 00:44:03]} {[%emt 00:00:46]} 10.
h3 {[%clk 00:41:58]} {[%emt 00:02:01]} Bd7 {[%clk 00:40:33]} {[%emt 00:03:40]}
11. Nbd2 {[%clk 00:41:15]} {[%emt 00:00:53]} Qc8 {[%clk 00:40:10]} {[%emt
00:00:33]} 12. Bh2 {[%clk 00:38:39]} {[%emt 00:02:46]} Bf5 {[%clk 00:38:58]}
{[%emt 00:01:22]} 13. Qc2 {[%clk 00:37:01]} {[%emt 00:01:49]} Bxd3 {[%clk
00:36:42]} {[%emt 00:02:26]} 14. Qxd3 {[%clk 00:37:07]} {[%emt 00:00:04]} e6
{[%clk 00:35:52]} {[%emt 00:01:00]} 15. Rad1 {[%clk 00:33:54]} {[%emt
00:03:23]} a5 {[%clk 00:34:26]} {[%emt 00:01:36]} 16. a4 {[%clk 00:31:57]}
{[%emt 00:02:07]} Nd7 {[%clk 00:33:48]} {[%emt 00:00:48]} 17. Qb5 {[%clk
00:30:20]} {[%emt 00:01:47]} b6 {[%clk 00:32:50]} {[%emt 00:01:08]} 18. Nb1
{[%clk 00:28:41]} {[%emt 00:01:48]} Na7 {[%clk 00:31:52]} {[%emt 00:01:06]} 19.
Qb3 {[%clk 00:28:31]} {[%emt 00:00:24]} Qa6 {[%clk 00:29:30]} {[%emt 00:02:31]}
20. Na3 {[%clk 00:27:04]} {[%emt 00:01:37]} Bf8 {[%clk 00:27:14]} {[%emt
00:02:26]} 21. Ne5 {[%clk 00:25:32]} {[%emt 00:01:42]} Nxe5 {[%clk 00:26:56]}
{[%emt 00:00:28]} 22. Bxe5 {[%clk 00:25:40]} {[%emt 00:00:02]} Rac8 {[%clk
00:24:18]} {[%emt 00:02:48]} 23. Ra1 {[%clk 00:24:14]} {[%emt 00:01:36]} Bxa3
{[%clk 00:19:01]} {[%emt 00:05:26]} 24. Rxa3 {[%clk 00:23:02]} {[%emt
00:01:23]} Nc6 {[%clk 00:16:46]} {[%emt 00:02:26]} 25. Bf6 {[%clk 00:22:18]}
{[%emt 00:00:53]} Qc4 {[%clk 00:16:25]} {[%emt 00:00:32]} 26. Qd1 {[%clk
00:21:59]} {[%emt 00:00:29]} Nb8 {[%clk 00:15:49]} {[%emt 00:00:45]} 27. Bh4
{[%clk 00:19:06]} {[%emt 00:03:02]} Nd7 {[%clk 00:15:21]} {[%emt 00:00:40]} 28.
Bg3 {[%clk 00:19:12]} {[%emt 00:00:04]} Qc6 {[%clk 00:13:32]} {[%emt 00:01:57]}
29. Qd2 {[%clk 00:18:48]} {[%emt 00:00:36]} Kg7 {[%clk 00:13:10]} {[%emt
00:00:32]} 30. Rb1 {[%clk 00:16:37]} {[%emt 00:02:20]} e5 {[%clk 00:11:17]}
{[%emt 00:02:03]} 31. dxe5 {[%clk 00:15:57]} {[%emt 00:00:50]} Nxe5 {[%clk
00:11:25]} {[%emt 00:00:02]} 32. Qd4 {[%clk 00:15:54]} {[%emt 00:00:12]} f6
{[%clk 00:10:36]} {[%emt 00:00:59]} 33. Rd1 {[%clk 00:13:23]} {[%emt 00:02:42]}
Nc4 {[%clk 00:10:15]} {[%emt 00:00:32]} 34. Ra2 {[%clk 00:12:55]} {[%emt
00:00:37]} Rcd8 {[%clk 00:09:28]} {[%emt 00:00:57]} 35. b3 {[%clk 00:12:04]}
{[%emt 00:01:02]} Re4 {[%clk 00:08:07]} {[%emt 00:01:30]} 36. Qxe4 {[%clk
00:09:57]} {[%emt 00:02:17]} dxe4 {[%clk 00:08:13]} {[%emt 00:00:03]} 37. Rxd8
{[%clk 00:10:06]} {[%emt 00:00:02]} e3 {[%clk 00:08:10]} {[%emt 00:00:12]} 38.
bxc4 {[%clk 00:04:57]} {[%emt 00:05:20]} Qxc4 {[%clk 00:08:15]} {[%emt
00:00:06]} 39. Ra1 {[%clk 00:04:52]} {[%emt 00:00:14]} Qxc3 {[%clk 00:05:09]}
{[%emt 00:03:16]} 40. Rdd1 {[%clk 00:04:49]} {[%emt 00:00:13]} e2 {[%clk
00:04:27]} {[%emt 00:00:52]} 41. Rdc1 {[%clk 00:04:48]} {[%emt 00:00:11]} Qd3
{[%clk 00:03:57]} {[%emt 00:00:38]} 42. Rcb1 {[%clk 00:04:12]} {[%emt
00:00:48]} g5 {[%clk 00:03:46]} {[%emt 00:00:21]} 43. f3 {[%emt 00:00:59]} h5
{[%clk 00:03:21]} 44. Bf2 {[%clk 00:03:41]} {[%emt 00:00:27]} f5 {[%clk
00:03:15]} {[%emt 00:00:17]} 45. Bxb6 {[%clk 00:03:43]} {[%emt 00:00:07]} g4
{[%clk 00:03:23]} {[%emt 00:00:02]} 46. fxg4 {[%clk 00:01:26]} {[%emt
00:02:27]} hxg4 {[%clk 00:03:14]} {[%emt 00:00:19]} 47. hxg4 {[%clk 00:01:17]}
{[%emt 00:00:18]} fxg4 {[%clk 00:03:22]} {[%emt 00:00:03]} 48. Kf2 {[%clk
00:00:31]} {[%emt 00:00:56]} g3+ {[%clk 00:02:36]} {[%emt 00:00:56]} 49. Ke1
{[%clk 00:00:33]} {[%emt 00:00:09]} Qe4 {[%clk 00:02:44]} {[%emt 00:00:01]} 50.
Bxa5 {[%clk 00:00:24]} {[%emt 00:00:19]} Qxg2 {[%clk 00:02:46]} {[%emt
00:00:08]} 51. Bb6 {[%clk 00:00:22]} {[%emt 00:00:13]} Qf1+ {[%clk 00:02:07]}
{[%emt 00:00:48]} 52. Kd2 {[%clk 00:00:30]} {[%emt 00:00:02]} g2 {[%clk
00:02:11]} {[%emt 00:00:07]} 53. Bg1 {[%clk 00:00:36]} {[%emt 00:00:04]} Qf3
{[%clk 00:00:52]} {[%emt 00:01:28]} 54. a5 {[%clk 00:00:43]} {[%emt 00:00:04]}
Qf4+ {[%clk 00:00:46]} {[%emt 00:00:15]} 55. Kxe2 {[%clk 00:00:51]} {[%emt
00:00:02]} Qe4+ {[%clk 00:00:53]} {[%emt 00:00:03]} 56. Kf2 {[%clk 00:00:44]}
{[%emt 00:00:17]} Qd4+ {[%clk 00:00:57]} {[%emt 00:00:05]} 57. Kxg2 {[%clk
00:00:52]} {[%emt 00:00:03]} Qd2+ {[%clk 00:01:05]} {[%emt 00:00:01]} 58. Kf3
{[%clk 00:00:50]} {[%emt 00:00:13]} Qd3+ {[%clk 00:00:58]} {[%emt 00:00:17]} 59.
Kf4 {[%clk 00:00:54]} {[%emt 00:00:06]} Qc4+ {[%clk 00:01:02]} {[%emt
00:00:06]} 60. Ke5 {[%clk 00:01:00]} {[%emt 00:00:05]} Qc7+ {[%clk 00:01:04]}
{[%emt 00:00:07]} 61. Kd5 {[%clk 00:01:06]} {[%emt 00:00:04]} Qd7+ {[%clk
00:01:12]} {[%emt 00:00:02]} 62. Ke4 {[%clk 00:01:15]} {[%emt 00:00:01]} Qc6+
{[%clk 00:01:18]} {[%emt 00:00:04]} 63. Kd3 {[%clk 00:01:20]} {[%emt 00:00:05]}
Qd5+ {[%clk 00:01:26]} {[%emt 00:00:02]} 64. Bd4+ {[%clk 00:01:29]} {[%emt
00:00:02]} Kf8 {[%clk 00:01:26]} {[%emt 00:00:09]} 65. a6 {[%clk 00:01:14]}
{[%emt 00:00:26]} Qf3+ {[%clk 00:01:29]} {[%emt 00:00:06]} 66. Kc4 {[%clk
00:01:22]} {[%emt 00:00:02]} Qe2+ {[%clk 00:01:29]} {[%emt 00:00:04]} 67. Kc5
{[%clk 00:01:35]} {[%emt 00:01:26]} Qc2+ {[%clk 00:02:21]} {[%emt 00:00:12]} 68.
Kb5 {[%clk 00:01:28]} {[%emt 00:00:20]} Qd3+ {[%clk 00:02:29]} {[%emt
00:00:04]} 69. Kc5 {[%clk 00:01:37]} {[%emt 00:00:01]} Qc2+ {[%clk 00:02:37]}
{[%emt 00:00:01]} 70. Kd5 {[%clk 00:01:34]} {[%emt 00:00:14]} Qf5+ {[%clk
00:02:39]} {[%emt 00:00:08]} 71. Be5 {[%clk 00:01:42]} {[%emt 00:00:02]} Qd3+
{[%clk 00:02:45]} {[%emt 00:00:04]} 72. Kc6 {[%clk 00:01:47]} {[%emt 00:00:05]}
Qe4+ {[%clk 00:02:53]} {[%emt 00:00:02]} 73. Kd6 {[%clk 00:01:56]} {[%emt
00:00:02]} Qd3+ {[%clk 00:02:54]} {[%emt 00:00:07]} 74. Kc7 {[%clk 00:01:43]}
{[%emt 00:00:25]} Qc4+ {[%clk 00:02:48]} {[%emt 00:00:14]} 75. Kb8 {[%clk
00:01:25]} {[%emt 00:00:31]} Qd5 {[%clk 00:02:30]} {[%emt 00:00:25]} 76. Bc7
{[%clk 00:01:25]} {[%emt 00:00:11]} Qe6 {[%clk 00:02:19]} {[%emt 00:00:21]} 77.
Ka7 {[%clk 00:01:00]} {[%emt 00:00:36]} Qe3+ {[%clk 00:01:55]} {[%emt
00:00:34]} 78. Rb6 {[%clk 00:01:02]} {[%emt 00:00:08]} Qc3 {[%clk 00:01:55]}
{[%emt 00:00:07]} 79. Rf1+ {[%clk 00:01:03]} {[%emt 00:00:11]} Ke8 {[%clk
00:01:39]} {[%emt 00:00:24]} 80. Rb7 {[%clk 00:01:03]} {[%emt 00:00:13]} Qc5+
{[%clk 00:01:21]} {[%emt 00:00:26]} 81. Bb6 {[%clk 00:01:11]} {[%emt 00:00:04]}
Qc4 {[%clk 00:00:51]} {[%emt 00:00:35]} 82. Rd1 {[%clk 00:01:13]} {[%emt
00:00:13]} Qh4 {[%clk 00:00:16]} {[%emt 00:00:45]} 83. Rd8+ {[%clk 00:01:22]}
{[%emt 00:00:02]} Qxd8 {[%clk 00:00:24]} {[%emt 00:00:02]} 84. Bxd8 {[%clk
00:01:31]} Kxd8 {[%clk 00:00:32]} {[%emt 00:00:01]} 85. Kb8 {[%emt 00:00:08]}
1-0

[Event "FIDE U16 Olympiad_boards_81-124"]
[Site "Eindhoven, Netherlands"]
[Date "2023.08.14"]
[Round "3.22"]
[White "Pido, Edwin"]
[Black "Saipetch, Kai"]
[Result "1/2-1/2"]
[TimeControl "45min+10sec"]
[WhiteElo "1482"]
[BlackElo "1270"]

1. d4 {[%clk 00:45:13]} {[%emt 00:00:06]} d5 {[%clk 00:45:15]} {[%emt
00:00:06]} 2. c4 {[%clk 00:45:21]} {[%emt 00:00:02]} e6 {[%clk 00:45:22]}
{[%emt 00:00:04]} 3. Nc3 {[%clk 00:45:27]} {[%emt 00:00:02]} Nf6 {[%clk
00:45:26]} {[%emt 00:00:07]} 4. Nf3 {[%clk 00:45:22]} {[%emt 00:00:14]} c6
{[%clk 00:45:30]} {[%emt 00:00:07]} 5. e3 {[%clk 00:45:26]} {[%emt 00:00:05]}
Bd6 {[%clk 00:45:18]} {[%emt 00:00:22]} 6. Be2 {[%clk 00:45:23]} {[%emt
00:00:13]} O-O {[%clk 00:45:11]} {[%emt 00:00:17]} 7. O-O {[%clk 00:45:20]}
{[%emt 00:00:13]} Nbd7 {[%clk 00:44:59]} {[%emt 00:00:22]} 8. b3 {[%clk
00:44:17]} {[%emt 00:01:13]} b6 {[%clk 00:44:39]} {[%emt 00:00:31]} 9. Bb2
{[%clk 00:44:11]} {[%emt 00:00:15]} Bb7 {[%clk 00:44:32]} {[%emt 00:00:18]} 10.
Rc1 {[%clk 00:43:41]} {[%emt 00:00:39]} Re8 {[%clk 00:44:02]} {[%emt 00:00:41]}
11. Qc2 {[%clk 00:42:43]} {[%emt 00:01:08]} Qc7 {[%clk 00:40:56]} {[%emt
00:03:16]} 12. h3 {[%clk 00:38:35]} {[%emt 00:04:18]} Rac8 {[%clk 00:37:14]}
{[%emt 00:03:51]} 13. Rfd1 {[%clk 00:33:29]} {[%emt 00:05:16]} h6 {[%clk
00:36:19]} {[%emt 00:01:06]} 14. cxd5 {[%clk 00:29:32]} {[%emt 00:04:06]} exd5
{[%clk 00:36:10]} {[%emt 00:00:20]} 15. Qf5 {[%clk 00:29:03]} {[%emt 00:00:37]}
Qd8 {[%clk 00:31:51]} {[%emt 00:04:28]} 16. Qb1 {[%clk 00:24:10]} {[%emt
00:05:05]} Nf8 {[%clk 00:30:37]} {[%emt 00:01:25]} 17. Nh4 {[%clk 00:23:25]}
{[%emt 00:00:54]} Ne6 {[%clk 00:28:07]} {[%emt 00:02:40]} 18. Nf5 {[%clk
00:23:13]} {[%emt 00:00:24]} Bb8 {[%clk 00:27:56]} {[%emt 00:00:20]} 19. Ba3
{[%clk 00:21:34]} {[%emt 00:01:48]} Ng5 {[%clk 00:25:46]} {[%emt 00:02:20]} 20.
Re1 {[%clk 00:15:30]} {[%emt 00:06:15]} Nfe4 {[%clk 00:23:09]} {[%emt
00:02:47]} 21. Bg4 {[%clk 00:13:34]} {[%emt 00:02:05]} Qc7 {[%clk 00:18:51]}
{[%emt 00:04:28]} 22. f4 {[%clk 00:06:27]} {[%emt 00:07:18]} Nxc3 {[%clk
00:18:24]} {[%emt 00:00:37]} 23. Rxc3 {[%clk 00:06:35]} {[%emt 00:00:02]} Ne4
{[%clk 00:18:09]} {[%emt 00:00:25]} 24. Rcc1 {[%clk 00:06:21]} {[%emt
00:00:23]} Rcd8 {[%clk 00:17:19]} {[%emt 00:01:01]} 25. Bf3 {[%clk 00:06:16]}
{[%emt 00:00:15]} Bc8 {[%clk 00:15:57]} {[%emt 00:01:32]} 26. Bxe4 {[%clk
00:05:26]} {[%emt 00:00:59]} Rxe4 {[%clk 00:15:47]} {[%emt 00:00:20]} 27. Ng3
{[%clk 00:05:12]} {[%emt 00:00:25]} Re6 {[%clk 00:15:35]} {[%emt 00:00:21]} 28.
Rc3 {[%clk 00:03:43]} {[%emt 00:01:40]} Rde8 {[%clk 00:15:01]} {[%emt
00:00:43]} 29. Kf2 {[%clk 00:03:33]} {[%emt 00:00:21]} g5 {[%clk 00:13:28]}
{[%emt 00:01:43]} 30. Ne2 {[%clk 00:03:40]} {[%emt 00:00:03]} Rf6 {[%clk
00:13:12]} {[%emt 00:00:25]} 31. Kg1 {[%clk 00:03:37]} {[%emt 00:00:14]} Ba6
{[%clk 00:11:41]} {[%emt 00:01:40]} 32. Qc2 {[%clk 00:03:25]} {[%emt 00:00:22]}
Bxe2 {[%clk 00:11:34]} {[%emt 00:00:18]} 33. Rxe2 {[%clk 00:01:22]} {[%emt
00:02:13]} gxf4 {[%clk 00:11:27]} {[%emt 00:00:18]} 34. exf4 {[%clk 00:01:30]}
{[%emt 00:00:01]} Rxe2 {[%clk 00:11:07]} {[%emt 00:00:30]} 35. Rg3+ {[%clk
00:01:26]} {[%emt 00:00:14]} Rg6 {[%clk 00:09:52]} {[%emt 00:01:24]} 36. Rxg6+
{[%clk 00:01:34]} {[%emt 00:00:03]} fxg6 {[%clk 00:09:59]} {[%emt 00:00:03]} 37.
Qxe2 {[%clk 00:01:42]} {[%emt 00:00:02]} Qxf4 {[%clk 00:08:30]} {[%emt
00:01:39]} 38. Qe6+ {[%clk 00:01:41]} {[%emt 00:00:10]} Kg7 {[%clk 00:07:53]}
{[%emt 00:00:46]} 39. Qd7+ {[%clk 00:01:45]} {[%emt 00:00:08]} Kg8 {[%clk
00:07:41]} {[%emt 00:00:22]} 40. Qc8+ {[%clk 00:01:13]} {[%emt 00:00:42]} Kg7
{[%clk 00:07:23]} {[%emt 00:00:27]} 41. Qd7+ {[%clk 00:00:51]} {[%emt
00:00:32]} Kg8 {[%clk 00:07:30]} {[%emt 00:00:04]} 42. Qe8+ {[%clk 00:00:17]}
{[%emt 00:00:44]} Kg7 {[%clk 00:07:31]} {[%emt 00:00:08]} 43. Qe7+ {[%clk
00:00:15]} {[%emt 00:00:12]} Kg8 {[%clk 00:07:36]} {[%emt 00:00:06]} 44. Qe8+
{[%clk 00:00:13]} {[%emt 00:00:12]} 1/2-1/2

[Event "FIDE U16 Olympiad_boards_81-124"]
[Site "Eindhoven, Netherlands"]
[Date "2023.08.14"]
[Round "3.23"]
[White "Jiroajvanichakorn, Rathasart"]
[Black "Ajiri, Nygaard"]
[Result "0-1"]
[TimeControl "45min+10sec"]
[WhiteElo "1344"]
[BlackElo "1591"]

1. e4 {[%clk 00:45:18]} {[%emt 00:00:02]} e5 {[%clk 00:45:19]} {[%emt
00:00:02]} 2. Nf3 {[%clk 00:45:26]} {[%emt 00:00:02]} Nc6 {[%clk 00:45:27]}
{[%emt 00:00:02]} 3. Bb5 {[%clk 00:45:32]} {[%emt 00:00:04]} Nf6 {[%clk
00:45:34]} {[%emt 00:00:03]} 4. O-O {[%clk 00:45:38]} {[%emt 00:00:03]} Bc5
{[%clk 00:45:41]} {[%emt 00:00:03]} 5. c3 {[%clk 00:45:44]} {[%emt 00:00:05]}
a6 {[%clk 00:45:40]} {[%emt 00:00:10]} 6. Bxc6 {[%clk 00:45:22]} {[%emt
00:00:32]} dxc6 {[%clk 00:45:35]} {[%emt 00:00:15]} 7. d4 {[%clk 00:44:59]}
{[%emt 00:00:33]} exd4 {[%clk 00:45:31]} {[%emt 00:00:14]} 8. cxd4 {[%clk
00:45:07]} {[%emt 00:00:02]} Bb4 {[%clk 00:45:39]} {[%emt 00:00:03]} 9. a3
{[%clk 00:44:47]} {[%emt 00:00:30]} Ba5 {[%clk 00:45:45]} {[%emt 00:00:03]} 10.
b4 {[%clk 00:44:52]} {[%emt 00:00:05]} Bb6 {[%clk 00:45:50]} {[%emt 00:00:05]}
11. e5 {[%clk 00:41:35]} {[%emt 00:03:28]} Nd5 {[%clk 00:42:15]} {[%emt
00:03:45]} 12. Bg5 {[%clk 00:40:08]} {[%emt 00:01:37]} Qd7 {[%clk 00:39:18]}
{[%emt 00:03:06]} 13. Qd2 {[%clk 00:36:28]} {[%emt 00:03:50]} Qg4 {[%clk
00:38:24]} {[%emt 00:01:02]} 14. h3 {[%clk 00:36:00]} {[%emt 00:00:41]} Qh5
{[%clk 00:38:31]} {[%emt 00:00:02]} 15. Qd3 {[%clk 00:34:34]} {[%emt 00:01:37]}
h6 {[%clk 00:38:21]} {[%emt 00:00:18]} 16. Bd2 {[%clk 00:32:47]} {[%emt
00:01:58]} Bf5 {[%clk 00:38:01]} {[%emt 00:00:30]} 17. Qe2 {[%clk 00:32:05]}
{[%emt 00:00:52]} Be6 {[%clk 00:37:21]} {[%emt 00:00:48]} 18. Nc3 {[%clk
00:31:32]} {[%emt 00:00:45]} O-O-O {[%clk 00:37:12]} {[%emt 00:00:19]} 19. Ne4
{[%clk 00:29:41]} {[%emt 00:02:01]} g5 {[%clk 00:36:23]} {[%emt 00:00:59]} 20.
Ng3 {[%clk 00:27:33]} {[%emt 00:02:19]} Qg6 {[%clk 00:36:00]} {[%emt 00:00:32]}
21. Qe4 {[%clk 00:25:51]} {[%emt 00:01:52]} f5 {[%clk 00:35:12]} {[%emt
00:00:58]} 22. exf6 {[%clk 00:25:48]} {[%emt 00:00:14]} Qxf6 {[%clk 00:35:19]}
{[%emt 00:00:03]} 23. Ne5 {[%clk 00:23:34]} {[%emt 00:02:24]} h5 {[%clk
00:26:59]} {[%emt 00:08:28]} 24. Nf3 {[%clk 00:20:17]} {[%emt 00:03:28]} Nf4
{[%clk 00:25:45]} {[%emt 00:01:13]} 25. Bxf4 {[%clk 00:18:47]} {[%emt
00:01:51]} gxf4 {[%clk 00:25:25]} {[%emt 00:00:29]} 26. Ne2 {[%clk 00:18:50]}
{[%emt 00:00:08]} Rdf8 {[%clk 00:25:19]} {[%emt 00:00:14]} 27. Nxf4 {[%clk
00:18:18]} {[%emt 00:00:44]} Bc4 {[%clk 00:24:57]} {[%emt 00:00:31]} 28. Rfc1
{[%clk 00:18:09]} {[%emt 00:00:20]} Bg8 {[%clk 00:20:01]} {[%emt 00:05:04]} 29.
g3 {[%clk 00:12:15]} {[%emt 00:06:07]} Bd5 {[%clk 00:13:35]} {[%emt 00:06:35]}
30. Qd3 {[%clk 00:10:41]} {[%emt 00:01:45]} Bxf3 {[%clk 00:03:42]} {[%emt
00:10:03]} 31. Qxf3 {[%clk 00:10:48]} {[%emt 00:00:03]} Bxd4 {[%clk 00:03:50]}
{[%emt 00:00:02]} 32. Ra2 {[%clk 00:10:29]} {[%emt 00:00:28]} h4 {[%clk
00:03:23]} {[%emt 00:00:37]} 33. Kg2 {[%clk 00:08:23]} {[%emt 00:02:16]} Rhg8
{[%clk 00:03:25]} {[%emt 00:00:08]} 34. Kh1 {[%clk 00:03:13]} {[%emt 00:05:20]}
Bxf2 {[%clk 00:02:54]} {[%emt 00:00:41]} 35. Rxf2 {[%clk 00:01:23]} {[%emt
00:02:01]} hxg3 {[%clk 00:01:59]} {[%emt 00:01:04]} 36. Re2 {[%clk 00:01:04]}
{[%emt 00:00:29]} Qh4 {[%clk 00:01:02]} {[%emt 00:01:08]} 37. Re4 {[%clk
00:00:29]} {[%emt 00:00:45]} Rxf4 {[%clk 00:01:10]} {[%emt 00:00:02]} 38. Rxf4
{[%clk 00:00:25]} {[%emt 00:00:14]} Qxh3+ {[%clk 00:01:17]} {[%emt 00:00:02]}
39. Kg1 {[%clk 00:00:31]} {[%emt 00:00:05]} Qh2+ {[%clk 00:01:24]} {[%emt
00:00:03]} 40. Kf1 {[%clk 00:00:39]} {[%emt 00:00:02]} g2+ {[%clk 00:01:32]}
{[%emt 00:00:02]} 0-1